bitfinex-derivatives/quotes_ETHF0:USTF0_20250606
["timestamp","ask_amount","ask_price","bid_price","bid_amount"]
[1749168862116,0.2726,2406.5,2406.4,0.8307]
[1749168862321,0.1559,2407.0,2406.4,9.1918]
[1749168862522,0.1559,2407.0,2406.9,0.83053]
[1749168862723,0.1559,2407.0,2406.9,6.81453]
[1749168863023,0.00622924,2407.2,2407.1,0.83046]
[1749168863221,0.83008,2408.2,2407.2,2.07607]
[1749168863427,3.9444,2408.3,2407.3,11.1836]
[1749168863720,1.264,2408.1,2407.7,3.2078]
[1749168863925,1.264,2408.1,2407.3,7.9758]
[1749168863926,2.076,2408.4,2408.0,3.2078]
[1749168864127,0.83017,2408.0,2407.6,0.83027]
[1749168864417,0.83019,2407.9,2407.7,5.984]
[1749168864624,0.83017,2408.0,2407.7,6.81425]
[1749168864828,0.1077,2408.1,2407.9,0.83016]
[1749168865418,0.1077,2408.1,2408.0,5.983]
[1749168866629,0.83016,2408.0,2407.7,1.59073]
[1749168866930,1.3304,2408.1,2407.8,6.81321]
[1749168867828,2.16053,2408.1,2407.8,5.983]
[1749168868030,0.83015,2408.0,2407.8,5.983]
[1749168868321,4.5382,2408.1,2407.7,5.983]
[1749168868727,0.83022,2407.8,2407.7,5.983]
[1749168869121,4.5382,2408.1,2407.7,5.983]
[1749168869122,0.83021,2407.9,2407.7,5.983]
[1749168869323,2.0764,2408.0,2407.8,9.1478]
[1749168869519,0.83018,2407.9,2407.8,5.94]
[1749168869727,2.11278,2407.9,2407.8,5.94]
[1749168871421,0.83025,2407.7,2407.6,0.00622924]
[1749168871623,0.83025,2407.7,2407.6,5.98422924]
[1749168872018,2.0764,2408.0,2407.9,0.83018]
[1749168872327,2.90658,2408.0,2407.6,7.26702924]
[1749168872529,2.0764,2408.0,2407.9,4.03798]
[1749168872729,2.0764,2408.0,2407.9,34.15998]
[1749168872925,0.1077,2408.1,2408.0,0.83015]
[1749168873231,3.2078,2409.1,2408.0,30.86595]
[1749168873423,0.82991,2408.8,2408.5,0.82996]
[1749168873729,0.7379,2409.2,2408.7,3.2078]
[1749168873919,4.5298,2409.5,2409.0,3.2078]
[1749168874126,4.5298,2409.5,2409.0,28.33402924]
[1749168874127,0.00622924,2409.5,2409.0,28.33402924]
[1749168874426,0.00622924,2409.5,2409.1,1.2828]
[1749168874636,0.00622924,2409.5,2409.3,0.82968]
[1749168874933,0.83586924,2409.5,2409.2,6.80772]
[1749168875229,0.82968,2409.4,2409.2,5.978]
[1749168875528,0.82968,2409.4,2409.1,2.11255]
[1749168875529,0.82975,2409.2,2409.0,28.33402924]
[1749168875725,0.82972,2409.3,2409.1,5.978]
[1749168875932,0.82977,2409.1,2409.0,3.21402924]
[1749168876329,0.82977,2409.1,2409.0,0.00622924]
[1749168876728,0.6785,2409.4,2409.0,5.98222924]
[1749168876935,0.82975,2409.2,2409.0,5.98222924]
[1749168877229,0.82977,2409.1,2409.0,5.98222924]
[1749168877431,2.0192,2409.4,2409.0,5.98222924]
[1749168877622,0.82977,2409.1,2409.0,5.98222924]
[1749168878632,0.83001,2408.4,2408.0,3.2078]
[1749168878936,3.2078,2408.8,2408.3,31.096]
[1749168879132,0.82999,2408.5,2408.3,31.92604]
[1749168879327,0.82996,2408.6,2408.3,31.92604]
[1749168879829,0.83001,2408.4,2408.3,25.12]
[1749168880029,0.83005,2408.3,2408.2,5.98222924]
[1749168880236,2.16065,2408.3,2408.2,5.98222924]
[1749168881334,1.3306,2408.3,2408.2,5.98222924]
[1749168881531,3.2078,2408.8,2408.2,10.98222924]
[1749168881733,3.9678,2409.3,2408.3,3.2078]
[1749168882036,0.82989,2408.8,2408.5,0.82996]
[1749168882227,0.82989,2408.8,2408.6,5.976]
[1749168882427,0.82986,2408.9,2408.6,6.80594]
[1749168883033,0.82988,2408.8,2408.7,5.976]
[1749168883328,2.17419,2408.8,2408.7,5.976]
[1749168884935,6.74924,2409.3,2408.7,6.80589]
[1749168884936,0.82983,2409.0,2408.7,6.80589]
[1749168885129,0.82985,2408.9,2408.7,6.80589]
[1749168885633,2.07443,2409.1,2408.7,5.94]
[1749168885833,4.6749,2409.3,2408.7,5.94]
[1749168886137,0.82987,2408.8,2408.7,5.94]
[1749168886331,1.32,2409.2,2408.7,5.94]
[1749168886332,0.82986,2408.9,2408.7,5.94]
[1749168886634,0.82987,2408.8,2408.7,5.94]
[1749168887229,0.83001,2408.4,2408.3,3.2078]
[1749168887431,0.82997,2408.6,2408.3,6.80503]
[1749168887631,2.14993,2408.7,2408.5,3.2078]
[1749168887841,2.14993,2408.7,2408.4,0.82999]
[1749168888030,0.82995,2408.6,2408.4,0.82999]
[1749168888538,2.14993,2408.7,2408.5,0.82997]
[1749168888731,0.7276,2409.1,2408.6,3.2078]
[1749168889036,2.0665,2409.1,2408.7,5.975]
[1749168889239,0.82989,2408.8,2408.3,1.9875]
[1749168889543,0.82989,2408.8,2408.5,0.82994]
[1749168890129,0.82995,2408.6,2408.4,6.805]
[1749168890338,0.82993,2408.7,2408.5,0.82996]
[1749168891231,0.82993,2408.7,2408.5,0.82997]
[1749168891432,1.2724,2408.8,2408.5,0.82997]
[1749168891631,0.82991,2408.7,2408.5,0.82997]
[1749168892237,0.4425,2408.8,2408.6,3.2078]
[1749168892533,2.07491,2408.6,2408.2,9.24e-06]
[1749168892736,3.2078,2408.3,2407.1,5.975]
[1749168892932,3.2078,2407.6,2407.2,5.975]
[1749168893239,3.2078,2407.6,2407.2,6.80541]
[1749168893537,3.2078,2407.6,2407.2,0.83041]
[1749168893737,0.00622924,2407.6,2407.4,0.83034]
[1749168894040,0.00622924,2407.6,2407.3,31.91537]
[1749168894041,0.83652924,2407.6,2407.3,31.91537]
[1749168894540,0.83033,2407.5,2407.3,25.11]
[1749168894726,2.13863,2407.5,2407.4,5.976]
[1749168895739,1.3083,2407.5,2407.4,5.976]
[1749168896034,0.00622924,2407.6,2407.4,5.976]
[1749168896240,0.83652924,2407.6,2407.4,5.976]
[1749168896632,0.83032,2407.5,2407.4,5.976]
[1749168897633,2.21102924,2407.6,2407.4,5.976]
[1749168897833,2.21102924,2407.6,2407.4,6.80635]
[1749168898039,2.21102924,2407.6,2407.4,5.976]
[1749168898538,1.38072924,2407.6,2407.4,6.80634]
[1749168898838,1.38072924,2407.6,2407.4,5.976]
[1749168899043,1.38072924,2407.6,2407.4,6.80634]
[1749168899436,2.21103924,2407.6,2407.4,5.976]
[1749168899636,2.21103924,2407.6,2407.4,6.80634]
[1749168899943,0.83032,2407.5,2407.4,5.976]
[1749168900144,2.21103924,2407.6,2407.4,6.80635]
[1749168900440,2.21103924,2407.6,2407.5,0.83032]
[1749168900441,0.00622924,2407.6,2407.5,0.83032]
[1749168900840,0.00622924,2407.6,2407.4,6.80634]
[1749168900841,0.83651924,2407.6,2407.4,6.80634]
[1749168901034,1.32282924,2407.6,2407.4,6.80634]
[1749168901236,1.32282924,2407.6,2407.4,5.976]
[1749168901739,0.00622924,2407.6,2407.5,6.77032]
[1749168901940,9.24e-06,2407.6,2407.5,14.97812]
[1749168902235,9.24e-06,2407.6,2407.5,20.26815008]
[1749168902440,9.24e-06,2407.6,2407.5,16.96752]
[1749168903040,9.24e-06,2407.6,2407.5,47.02700849]
[1749168903841,9.24e-06,2407.6,2407.5,43.73052]
[1749168904037,1.377,2408.4,2407.6,0.83029]
[1749168904237,3.2078,2408.5,2407.9,5.28324]
[1749168904434,5.973,2409.7,2408.0,13.1965]
[1749168904435,3.6503,2408.8,2408.0,13.1965]
[1749168904630,0.83002,2408.4,2408.0,11.913]
[1749168904835,0.83007,2408.3,2408.1,5.973]
[1749168905034,2.20707,2408.3,2408.0,0.83013]
[1749168905235,2.20707,2408.3,2408.1,5.973]
[1749168905435,2.20706,2408.3,2408.1,5.973]
[1749168905636,1.377,2408.3,2408.1,5.973]
[1749168905843,2.20706,2408.3,2408.1,5.973]
[1749168906035,1.377,2408.3,2408.1,5.973]
[1749168906235,2.20706,2408.3,2408.1,5.973]
[1749168906432,0.83008,2408.2,2407.9,3.2078]
[1749168906641,2.16078,2408.2,2408.0,6.80314]
[1749168906843,0.83015,2408.0,2407.9,3.2078]
[1749168907039,0.83015,2408.0,2407.9,9.1808]
[1749168907244,0.83015,2408.0,2407.9,5.973]
[1749168907848,2.16085,2408.0,2407.9,5.973]
[1749168908048,1.3307,2408.0,2407.9,6.80318]
[1749168908243,1.3307,2408.0,2407.9,5.973]
[1749168908544,2.16085,2408.0,2407.9,5.973]
[1749168908941,4.74404924,2408.4,2407.9,5.973]
[1749168909137,2.82884924,2408.4,2408.1,0.8301]
[1749168909337,2.82885924,2408.4,2407.9,5.973]
[1749168909546,1.99882924,2408.4,2408.0,0.83013]
[1749168909748,0.83011,2408.2,2407.9,6.80318]
[1749168910249,1.2926,2408.1,2408.0,0.83015]
[1749168910942,0.00622924,2408.4,2407.9,5.973]
[1749168911147,0.83006,2408.3,2407.9,9.1808]
[1749168911450,0.83006,2408.3,2408.0,0.83013]
[1749168911451,0.83007,2408.3,2408.0,0.83013]
[1749168911645,1.2926,2408.2,2408.0,0.83013]
[1749168911840,2.12268,2408.2,2408.0,0.83013]
[1749168912349,2.12268,2408.2,2407.6,6.50439564]
[1749168912350,1.2926,2408.2,2407.6,6.50439564]
[1749168912548,0.8302,2407.9,2407.7,0.83024]
[1749168912743,2.15922,2407.8,2407.6,4.03807]
[1749168913045,2.15922,2407.8,2407.7,5.973]
[1749168913249,3.919,2408.1,2407.7,5.973]
[1749168913442,0.7112,2408.1,2408.0,0.83015]
[1749168913751,0.83009,2408.2,2408.0,0.83015]
[1749168914048,1.329,2408.2,2408.1,6.80312]
[1749168914646,0.00622924,2408.4,2408.3,0.83005]
[1749168916446,0.83623924,2408.4,2408.3,5.972]
[1749168916643,0.83623924,2408.4,2408.2,25.114]
[1749168916644,0.83005,2408.3,2408.2,25.114]
[1749168916853,6.06965,2408.3,2408.2,31.086]
[1749168917151,5.2396,2408.3,2408.2,31.086]
[1749168917450,6.06965,2408.3,2408.2,31.086]
[1749168918254,5.2396,2408.3,2408.2,31.086]
[1749168918548,6.06965,2408.3,2408.2,31.086]
[1749168918951,6.06965,2408.3,2408.2,25.114]
[1749168919153,6.06965,2408.3,2408.2,31.086]
[1749168919447,0.00622924,2408.4,2408.3,0.83005]
[1749168919654,0.00622924,2408.4,2408.3,6.77005]
[1749168920647,0.00622924,2408.4,2408.3,5.94]
[1749168920949,1.30422924,2408.4,2408.3,5.94]
[1749168921347,1.30422924,2408.4,2408.3,6.77005]
[1749168922443,1.30422924,2408.4,2408.2,31.086]
[1749168922649,4.03785,2408.3,2408.2,31.086]
[1749168923048,5.35695,2408.3,2408.2,31.086]
[1749168924251,0.00622924,2408.4,2408.3,0.83005]
[1749168924950,0.00622924,2408.4,2408.2,31.91606]
[1749168925142,1.37482924,2408.4,2408.2,31.91606]
[1749168925346,2.20484924,2408.4,2408.2,25.94406]
[1749168925555,2.20484924,2408.4,2408.3,5.972]
[1749168925759,1.37482924,2408.4,2408.3,6.80205]
[1749168925946,2.20483924,2408.4,2408.3,5.972]
[1749168927959,1.37482924,2408.4,2408.3,5.972]
[1749168928257,2.20483924,2408.4,2408.3,5.972]
[1749168932149,1.37482924,2408.4,2408.3,5.972]
[1749168932359,2.20483924,2408.4,2408.3,5.972]
[1749168934059,6.37482924,2408.4,2408.0,3.29659564]
[1749168934262,3.2078,2408.1,2407.5,2.13909564]
[1749168934455,2.07523,2408.2,2407.2,0.00622924]
[1749168934456,3.2078,2407.6,2407.2,0.00622924]
[1749168934658,1.3642,2407.5,2407.4,0.83036]
[1749168934857,1.3642,2407.5,2407.4,6.79736]
[1749168935052,0.7555,2408.0,2407.4,5.967]
[1749168935053,0.83023,2407.8,2407.4,5.967]
[1749168935257,0.83023,2407.8,2407.5,0.83031]
[1749168935564,0.83032,2407.5,2407.4,5.967]
[1749168936465,4.03812,2407.5,2407.4,5.967]
[1749168936653,0.83036,2407.4,2407.3,25.113]
[1749168936966,2.13286,2407.4,2407.3,31.081]
[1749168937259,2.89556,2407.4,2407.3,31.081]
[1749168937462,3.59366,2407.4,2407.3,31.081]
[1749168937865,0.83039,2407.3,2407.2,0.00622924]
[1749168938068,0.83039,2407.3,2406.5,4.03845]
[1749168938069,0.83063,2406.6,2406.5,5.968]
[1749168938266,4.03843,2406.6,2406.5,5.968]
[1749168938570,0.83077,2406.2,2406.1,5.968]
[1749168938763,4.03857,2406.2,2406.1,5.968]
[1749168941070,4.03857,2406.2,2405.9,0.00622924]
[1749168941071,0.83084,2406.0,2405.9,0.00622924]
[1749168941962,1.328,2406.1,2405.9,5.97522924]
[1749168942362,0.83084,2406.0,2405.9,5.97522924]
[1749168942670,1.328,2406.1,2405.9,5.97522924]
[1749168942671,2.15882,2406.1,2405.9,5.97522924]
[1749168942967,0.83084,2406.0,2405.9,5.97522924]
[1749168943176,2.21644,2406.0,2405.9,5.97522924]
[1749168943474,2.21644,2406.0,2405.9,5.97622924]
[1749168944360,1.3856,2406.0,2405.9,5.97622924]
[1749168944565,2.21644,2406.0,2405.9,5.97622924]
[1749168944764,1.3856,2406.0,2405.9,5.97622924]
[1749168944966,2.21644,2406.0,2405.9,5.97622924]
[1749168945366,1.3856,2406.0,2405.9,5.97622924]
[1749168945566,2.21644,2406.0,2405.9,5.97622924]
[1749168946069,2.21644,2406.0,2405.9,0.00622924]
[1749168946373,2.21644,2406.0,2405.9,5.97722924]
[1749168946781,3.2078,2406.2,2405.9,6.80809924]
[1749168946969,0.83082,2406.1,2405.9,5.97722924]
[1749168947169,1.2764,2406.1,2405.9,5.97722924]
[1749168947477,1.2764,2406.1,2405.9,0.00622924]
[1749168947478,0.83084,2406.0,2405.9,0.00622924]
[1749168947779,1.2764,2406.1,2405.9,0.00622924]
[1749168948476,3.2078,2406.2,2405.9,0.00622924]
[1749168948775,0.4427,2406.3,2406.0,0.83083]
[1749168949073,0.4427,2406.3,2406.2,0.83077]
[1749168949873,0.83079,2406.2,2406.0,0.8921]
[1749168950175,0.83081,2406.1,2406.0,5.972]
[1749168950378,0.83084,2406.0,2405.9,0.00622924]
[1749168950870,5.83084,2406.0,2405.9,0.00622924]
[1749168951477,0.83084,2406.0,2405.9,0.00622924]
[1749168953274,0.83084,2406.0,2405.9,5.97822924]
[1749168953571,2.17423,2406.1,2405.9,5.97822924]
[1749168953779,3.2078,2406.2,2405.9,5.97822924]
[1749168953969,3.2078,2406.2,2406.1,0.83081]
[1749168954277,3.2078,2406.2,2405.9,5.97822924]
[1749168954472,4.03858,2406.2,2406.0,0.83083]
[1749168954866,3.2078,2406.2,2405.9,0.00622924]
[1749168955065,0.83084,2406.0,2405.9,0.00622924]
[1749168955270,0.83084,2406.0,2405.9,5.97922924]
[1749168955671,5.83084,2406.0,2405.9,9.24e-06]
[1749168956279,7.09704,2406.0,2405.9,9.24e-06]
[1749168956479,2.09704,2406.0,2405.9,9.24e-06]
[1749168958175,7.09704,2406.0,2405.9,9.24e-06]
[1749168958380,2.09704,2406.0,2405.9,9.24e-06]
[1749168959475,7.09704,2406.0,2405.9,9.24e-06]
[1749168959676,7.09704,2406.0,2404.0,9.87]
[1749168959677,2.07794,2405.1,2403.6,3.2078]
[1749168959875,3.2078,2404.0,2403.7,0.08320505]
[1749168960082,4.03933,2404.0,2403.7,0.08320505]
[1749168960277,0.8316,2403.8,2403.7,0.08320505]
[1749168960577,3.2078,2404.0,2403.5,0.00622924]
[1749168960578,14.17702924,2404.0,2403.5,0.00622924]
[1749168960778,4.03947,2403.6,2403.5,0.00622924]
[1749168961079,0.83198,2402.8,2402.6,5.964]
[1749168961283,3.2078,2403.1,2402.2,1.2829]
[1749168961576,0.32768923,2404.0,2402.2,1.2829]
[1749168961577,0.00622924,2404.0,2403.0,3.2078]
[1749168961780,0.00622924,2404.0,2403.6,3.2078]
[1749168961975,3.2078,2404.6,2403.9,3.2078]
[1749168962176,3.2078,2404.6,2404.0,2.1547]
[1749168962370,3.2078,2404.6,2404.1,5.964]
[1749168962575,3.2078,2404.6,2404.5,0.83136]
[1749168962778,3.2078,2404.6,2404.5,6.79536]
[1749168963081,3.2078,2404.6,2404.5,11.79536]
[1749168963286,0.00624259,2404.8,2404.7,0.83129]
[1749168963686,3.2078,2405.2,2405.0,0.83117]
[1749168963883,3.2078,2405.5,2405.1,8.1233]
[1749168964085,1.3665,2405.6,2405.2,5.964]
[1749168964279,4.03889,2405.3,2405.2,5.964]
[1749168964478,3.2078,2405.3,2405.2,5.964]
[1749168965181,4.03888,2405.3,2405.2,5.964]
[1749168965383,0.83115,2405.1,2405.0,0.00624259]
[1749168968188,5.83115,2405.1,2405.0,0.00624259]
[1749168968391,0.83115,2405.1,2405.0,0.00624259]
[1749168968588,5.83115,2405.1,2405.0,2.59e-06]
[1749168968780,6.86254358,2405.1,2405.0,2.59e-06]
[1749168969991,0.83115,2405.1,2405.0,2.59e-06]
[1749168970495,5.83115,2405.1,2405.0,2.59e-06]
[1749168970886,6.86250814,2405.1,2405.0,2.59e-06]
[1749168971089,2.07812,2404.9,2403.7,1.664]
[1749168971293,3.2078,2404.1,2404.0,5.965]
[1749168971587,4.03917,2404.5,2404.0,5.965]
[1749168971789,3.2078,2404.5,2404.1,1.286]
[1749168971996,3.2078,2404.5,2404.4,0.83139]
[1749168972187,3.2078,2404.5,2404.4,6.79639]
[1749168972388,3.2078,2404.5,2404.4,11.79639]
[1749168972590,3.2078,2404.5,2404.4,5.965]
[1749168972891,4.03916,2404.5,2404.4,5.965]
[1749168973593,3.2078,2404.5,2404.4,5.965]
[1749168974392,3.2078,2404.5,2404.4,6.79639]
[1749168974595,3.6038,2404.8,2404.5,0.83136]
[1749168974793,3.6038,2404.8,2404.5,6.20022]
[1749168974994,3.6038,2404.8,2404.7,0.83129]
[1749168975190,3.6038,2404.8,2404.6,0.83131]
[1749168975397,4.43508,2404.8,2404.6,0.8305]
[1749168975686,0.83129,2404.7,2404.6,0.8305]
[1749168976092,0.83132,2404.6,2404.5,4.10186]
[1749168976296,2.17392,2404.6,2404.5,10.06786]
[1749168978495,0.83132,2404.6,2404.5,10.06786]
[1749168979089,0.83132,2404.6,2404.5,5.966]
[1749168979294,0.83129,2404.7,2404.5,5.966]
[1749168979500,0.83132,2404.6,2404.5,5.966]
[1749168980199,0.396,2404.8,2404.7,0.83129]
[1749168980494,3.21404259,2405.5,2405.2,0.83112]
[1749168980698,1.60468,2405.3,2405.2,5.966]
[1749168981196,1.60468,2405.3,2404.9,4.10186]
[1749168981197,0.83112,2405.2,2405.1,5.966]
[1749168981492,4.03892,2405.2,2405.1,5.966]
[1749168982487,0.83119,2405.0,2404.9,4.10186]
[1749168982693,0.83119,2405.0,2404.9,10.06786]
[1749168983496,4.5704,2405.2,2404.8,5.966]
[1749168983797,0.83125,2404.8,2404.7,5.966]
[1749168984199,2.19385,2404.8,2404.7,5.966]
[1749168984391,3.06665,2404.8,2404.7,5.966]
[1749168985894,2.2354,2404.8,2404.3,25.149]
[1749168986098,4.03919,2404.4,2404.3,25.149]
[1749168986297,4.03919,2404.4,2404.3,31.115]
[1749168986499,3.2078,2404.4,2404.3,31.115]
[1749168986715,4.03919,2404.4,2404.3,31.115]
[1749168987092,3.2078,2404.4,2404.3,31.115]
[1749168987401,4.03919,2404.4,2404.3,31.115]
[1749168987696,3.2078,2404.4,2404.3,31.94643]
[1749168988002,3.2078,2404.4,2404.3,31.115]
[1749168988503,3.2078,2404.5,2404.3,25.149]
[1749168988698,0.83139,2404.4,2404.3,25.149]
[1749168989003,2.22719,2404.4,2404.3,31.115]
[1749168989307,4.03918,2404.5,2404.3,31.115]
[1749168989503,3.2078,2404.5,2404.4,0.83139]
[1749168989797,4.03917,2404.5,2404.3,31.115]
[1749168990200,0.83139,2404.4,2404.3,31.115]
[1749168990704,0.83143,2404.3,2404.2,0.00624259]
[1749168990910,3.91533,2404.3,2404.2,0.00624259]
[1749168991406,8.91533,2404.3,2404.2,2.59e-06]
[1749168991603,9.95092407,2404.3,2404.2,2.59e-06]
[1749168992101,3.91533,2404.3,2404.2,2.59e-06]
[1749168992502,8.91533,2404.3,2404.2,2.59e-06]
[1749168992805,9.95124077,2404.3,2404.2,2.59e-06]
[1749168993000,15.91724077,2404.3,2404.2,2.59e-06]
[1749168993706,0.8315,2404.1,2403.2,5.967]
[1749168993902,4.03959,2403.3,2403.2,5.967]
[1749168994309,4.03958,2403.3,2403.2,5.967]
[1749168994804,0.83184,2403.1,2403.0,0.00420592]
[1749168995204,3.2078,2403.3,2403.0,0.00420592]
[1749168995403,0.83183,2403.2,2403.1,5.967]
[1749168995705,3.2078,2403.3,2403.1,5.967]
[1749168995910,0.83181,2403.2,2403.1,5.967]
[1749168996407,3.2078,2403.3,2403.1,5.967]
[1749168996803,0.83181,2403.2,2403.1,5.967]
[1749168997106,3.2078,2403.3,2403.1,6.79883]
[1749168997313,3.2078,2403.3,2403.1,8.51443]
[1749168998005,3.2078,2403.3,2403.1,7.6826]
[1749168998208,4.03959,2403.3,2403.1,7.6826]
[1749168998409,0.83181,2403.2,2403.1,7.6826]
[1749168998606,0.83181,2403.2,2403.1,6.8575]
[1749168999208,0.83181,2403.2,2403.1,5.968]
[1749168999412,4.0396,2403.3,2403.1,5.968]
[1749168999602,4.03958,2403.3,2403.1,5.968]
[1749168999913,3.2078,2403.3,2403.1,5.968]
[1749169000108,3.2078,2403.3,2403.0,0.00420592]
[1749169000307,3.2078,2403.3,2402.1,0.8403]
[1749169000308,1.2818,2403.2,2402.1,0.8403]
[1749169000505,3.2078,2403.0,2402.7,0.83195]
[1749169000703,3.2078,2403.0,2402.7,5.969]
[1749169000910,3.2078,2403.0,2402.8,5.969]
[1749169001114,3.2078,2403.0,2402.9,6.80091]
[1749169001411,0.00624259,2403.5,2403.4,0.83174]
[1749169001613,0.00624259,2403.5,2403.4,6.80074]
[1749169001911,3.2078,2403.9,2403.8,0.8316]
[1749169002209,3.2078,2403.9,2403.8,6.8006]
[1749169002421,3.2078,2404.2,2403.8,10.969]
[1749169002708,3.2078,2404.2,2403.8,5.969]
[1749169002907,3.21404259,2404.2,2404.1,0.8315]
[1749169003908,3.21404259,2404.2,2403.9,2.09754]
[1749169004106,3.21404259,2404.2,2404.0,5.969]
[1749169004711,1.2836,2404.1,2404.0,5.969]
[1749169005312,2.1151,2404.1,2404.0,5.969]
[1749169005610,2.1151,2404.1,2403.8,0.88324259]
[1749169005611,0.83157,2403.9,2403.8,0.00624259]
[1749169005811,3.2078,2403.9,2403.8,0.00624259]
[1749169006006,3.2078,2403.9,2403.8,0.83784259]
[1749169006206,3.2078,2403.9,2403.8,0.00624259]
[1749169006419,4.03937,2403.9,2403.8,0.00624259]
[1749169006708,3.2078,2403.9,2403.8,0.00624259]
[1749169007112,4.03937,2403.9,2403.8,0.00624259]
[1749169007617,3.2078,2403.9,2403.8,0.00624259]
[1749169007915,3.2078,2403.9,2403.8,0.83784259]
[1749169008612,3.2078,2403.9,2403.8,5.83784259]
[1749169008919,0.7736,2404.1,2404.0,0.83153]
[1749169009127,0.7736,2404.1,2404.0,11.79953]
[1749169009514,0.7736,2404.1,2404.0,13.95033]
[1749169010315,3.2078,2404.7,2404.6,0.83133]
[1749169010615,3.2078,2404.7,2404.6,31.95833]
[1749169011011,3.2078,2405.0,2404.8,0.83124]
[1749169011211,3.2078,2405.0,2404.9,0.83122]
[1749169011422,0.00624259,2405.1,2404.9,0.83122]
[1749169011423,3.2078,2405.9,2405.0,2.07798]
[1749169011622,4.03869,2405.9,2405.5,0.83099]
[1749169011822,3.2078,2405.9,2405.6,5.967]
[1749169012117,0.83098,2405.6,2405.5,31.123]
[1749169012323,0.00624259,2405.8,2405.7,0.83095]
[1749169013122,0.83716259,2405.8,2405.6,1.2857]
[1749169013329,0.00624259,2405.8,2405.3,0.93374259]
[1749169013529,0.83717259,2405.8,2405.4,0.83103]
[1749169013826,0.83717259,2405.8,2405.3,0.93374259]
[1749169013827,3.2078,2405.7,2405.5,5.967]
[1749169014034,0.83098,2405.6,2405.5,5.967]
[1749169014232,2.18428,2405.6,2405.5,5.967]
[1749169014833,2.18428,2405.6,2405.3,0.00624259]
[1749169014834,0.83105,2405.4,2405.3,0.00624259]
[1749169015032,0.83105,2405.4,2405.3,5.97224259]
[1749169015332,5.83105,2405.4,2405.3,5.97224259]
[1749169015536,4.03885,2405.4,2405.3,5.97224259]
[1749169017030,3.2078,2405.4,2405.3,5.97224259]
[1749169017229,4.03885,2405.4,2405.3,5.97224259]
[1749169017428,9.584,2405.4,2404.8,0.878]
[1749169017732,0.83112,2405.2,2405.1,5.966]
[1749169018624,4.584,2405.4,2404.9,0.00624259]
[1749169018830,0.83119,2405.0,2404.9,0.00624259]
[1749169019134,4.584,2405.4,2404.9,0.00624259]
[1749169019135,0.83117,2405.1,2404.9,5.97224259]
[1749169019331,0.83119,2405.0,2404.9,0.00624259]
[1749169019635,2.14589,2405.0,2404.9,0.00624259]
[1749169020328,7.1755,2405.0,2404.3,3.2078]
[1749169020528,2.1755,2405.0,2404.3,3.2078]
[1749169020724,0.83139,2404.4,2404.3,3.2078]
[1749169020935,3.2078,2404.8,2404.3,9.2458]
[1749169021327,0.9246,2405.3,2404.3,14.63700259]
[1749169021528,3.2078,2405.0,2404.4,4.10186]
[1749169022032,0.83136,2404.5,2404.4,4.10186]
[1749169022237,0.83133,2404.6,2404.5,6.038]
[1749169024640,3.2078,2404.7,2404.5,6.038]
[1749169024840,6.899,2406.4,2404.5,6.038]
[1749169024841,3.2078,2405.5,2404.7,2.07824]
[1749169025038,3.2078,2406.2,2405.4,3.2078]
[1749169025344,3.2078,2406.0,2405.5,25.15]
[1749169025834,3.2078,2406.0,2405.6,6.038]
[1749169026039,3.2078,2406.3,2405.7,0.83095]
[1749169026233,3.2078,2406.3,2405.8,0.83089]
[1749169026433,3.2078,2406.3,2405.6,7.3233]
[1749169026629,0.83086,2406.0,2405.7,0.83091]
[1749169026932,3.2078,2406.3,2405.5,28.3578]
[1749169027133,3.2078,2406.0,2405.7,0.00624259]
[1749169027437,0.83091,2405.8,2405.7,0.00624259]
[1749169027739,4.0387,2405.9,2405.7,0.00624259]
[1749169027937,0.83091,2405.8,2405.7,0.00624259]
[1749169028529,0.83706259,2406.1,2405.8,0.83091]
[1749169028733,0.00624259,2406.1,2405.9,6.038]
[1749169029030,0.83084,2406.0,2405.9,6.038]
[1749169029537,0.83707259,2406.1,2405.9,6.038]
[1749169030242,0.83084,2406.0,2405.9,6.038]
[1749169030633,0.00624259,2406.1,2405.9,6.038]
[1749169030936,3.2078,2406.9,2406.0,3.2078]
[1749169031131,3.2078,2406.9,2406.8,0.83057]
[1749169031337,3.2078,2406.9,2406.8,6.86757]
[1749169031539,3.2078,2406.9,2406.8,6.037]
[1749169031733,4.03833,2406.9,2406.8,6.037]
[1749169032139,3.2078,2406.9,2406.8,6.86757]
[1749169032345,3.2078,2406.9,2406.8,6.037]
[1749169032544,3.2078,2406.9,2406.8,6.86757]
[1749169032744,3.2078,2406.9,2406.8,6.037]
[1749169033432,3.2078,2406.9,2406.8,6.86757]
[1749169034240,3.2078,2406.9,2406.8,6.037]
[1749169034753,3.2078,2406.9,2406.8,6.86757]
[1749169035042,3.2078,2406.9,2406.8,6.037]
[1749169035232,3.2078,2406.9,2406.8,6.86757]
[1749169035435,3.2078,2406.9,2406.8,6.037]
[1749169035642,4.03833,2406.9,2406.8,6.035]
[1749169035836,6.59626,2406.9,2406.0,4.9727]
[1749169036035,6.59626,2406.9,2406.1,6.035]
[1749169036036,4.03855,2406.3,2406.1,6.035]
[1749169036235,2.95068,2407.0,2406.1,6.86581]
[1749169036236,1.3121,2406.2,2406.1,6.86581]
[1749169037947,3.2078,2406.6,2406.1,11.035]
[1749169038145,1.70491,2407.0,2406.7,0.83058]
[1749169038346,0.83057,2406.8,2406.7,6.035]
[1749169038740,4.03837,2406.8,2406.7,6.035]